[Event "LAT-chT Higher League 2019"]
[Site "Riga"]
[Date "2019.10.12"]
[Round "7.1"]
[White "Mierins, Eriks"]
[Black "Laurusas, Tomas"]
[Result "0-1"]
[ECO "B84"]
[WhiteElo "2194"]
[BlackElo "2501"]
[Annotator "ChessBase"]
[PlyCount "74"]
[EventDate "2019.02.15"]
[EventType "team-tourn"]
[EventCountry "LAT"]
[SourceTitle "playchess.com"]
[Source "ChessBase"]
[SourceQuality "1"]
[TimeControl "40/5400+30:1800+30"]

1. e4 {[%emt 0:02:06]} c5 {[%emt 0:00:00]} 2. Nf3 {[%emt 0:00:07]} d6 {[%emt 0:00:00]} 3. d4 {[%emt 0:00:06]} cxd4 {[%emt 0:00:00]} 4. Nxd4 {[%emt 0:00:05]} Nf6 {[%emt 0:00:00]} 5. Nc3 {[%emt 0:00:13]} a6 {[%emt 0:00:16]} 6. Be2 {[%emt 0:00:36]} e6 {[%emt 0:00:48]} 7. Be3 {[%emt 0:01:33]} Nbd7 {[%emt 0:02:01]} 8. a4 {[%emt 0:00:30]} b6 {[%emt 0:01:12]} 9. f4 {[%emt 0:04:09]} Bb7 {[%emt 0:05:29]} 10. Bf3 {[%emt 0:00:14]} Rc8 {[%emt 0:11:32]} 11. O-O {[%emt 0:05:49]} Be7 {[%emt 0:14:55]} 12. f5 {[%emt 0:13:08]} e5 {[%emt 0:16:14]} 13. Ne6 {[%emt 0:08:01]} fxe6 {[%emt 0:01:08]} 14. Bh5+ {[%emt 0:00:58]} g6 {[%emt 0:11:15]} 15. fxg6 {[%emt 0:00:19]} O-O {[%emt 0:00:05]} 16. Bh6 {[%emt 0:00:33]} Rxc3 {[%emt 0:00:49]} 17. bxc3 {[%emt 0:00:50]} Bxe4 {[%emt 0:00:10]} 18. gxh7+ {[%emt 0:05:15]} Kxh7 {[%emt 0:06:12]} 19. Bxf8 {[%emt 0:00:15]} Qxf8 {[%emt 0:00:10]} 20. c4 {[%emt 0:02:13]} Qh6 {[%emt 0:01:34]} 21. Ra3 {[%emt 0:00:39]} Nxh5 {[%emt 0:13:16]} 22. Rf7+ {[%emt 0:07:06]} Kg8 {[%emt 0:01:32]} 23. Rxe7 {[%emt 0:00:08]} Qg5 {[%emt 0:00:02]} 24. Qe2 {[%emt 0:00:41]} Ndf6 {[%emt 0:06:06]} 25. Qf1 {[%emt 0:12:24]} Bf5 {[%emt 0:00:04]} 26. a5 {[%emt 0:05:29]} Ne4 {[%emt 0:00:48]} 27. Re8+ {[%emt 0:02:49]} Kf7 {[%emt 0:00:04]} 28. axb6 {[%emt 0:00:14]} Kxe8 {[%emt 0:00:55]} 29. b7 {[%emt 0:00:05]} Qd8 {[%emt 0:00:04]} 30. Rxa6 {[%emt 0:00:10]} Kf7 {[%emt 0:06:39]} 31. g4 {[%emt 0:07:05]} Qc7 {[%emt 0:00:10]} 32. gxf5 {[%emt 0:00:51]} Nf4 {[%emt 0:01:18]} 33. fxe6+ {[%emt 0:01:17]} Kxe6 {[%emt 0:00:01]} 34. b8=Q {[%emt 0:06:45]} Qxb8 {[%emt 0:00:19]} 35. c5 {[%emt 0:00:15]} Kf5 {[%emt 0:01:24]} 36. cxd6 {[%emt 0:03:19]} Qg8+ {[%emt 0:00:05]} 37. Kh1 {[%emt 0:00:04]} Qd5 {[%emt 0:00:43]} 0-1

[Event "LAT-chT Higher League 2019"]
[Site "Riga"]
[Date "2019.10.12"]
[Round "7.2"]
[White "Bernotas, Arturs"]
[Black "Wenzel, Birger"]
[Result "1-0"]
[ECO "B18"]
[WhiteElo "2366"]
[BlackElo "2055"]
[Annotator "NA"]
[PlyCount "89"]
[EventDate "2019.02.15"]
[EventType "team-tourn"]
[EventCountry "LAT"]
[SourceTitle "playchess.com"]
[Source "ChessBase"]
[SourceQuality "1"]
[TimeControl "40/5400+30:1800+30"]

1. e4 {[%emt 1:30:30]} c6 {[%emt 0:00:00]} 2. d4 {[%emt 0:00:00]} d5 {[%emt 0:00:04]} 3. Nc3 {[%emt 0:00:00]} dxe4 {[%emt 0:00:07]} 4. Nxe4 {[%emt 0:00:00]} Bf5 {[%emt 0:00:05]} 5. Ng3 {[%emt 0:00:00]} Bg6 {[%emt 0:00:09]} 6. Nh3 {[%emt 0:00:00]} Nd7 {[%emt 0:01:50]} 7. Nf4 {[%emt 0:00:00]} e5 {[%emt 0:01:40]} 8. Nxg6 {[%emt 0:00:00]} hxg6 {[%emt 0:00:12]} 9. dxe5 {[%emt 0:00:00]} Qa5+ {[%emt 0:00:40]} 10. Bd2 {[%emt 0:00:00]} Qxe5+ {[%emt 0:00:15]} 11. Qe2 {[%emt 0:00:00]} Ngf6 {[%emt 0:03:17]} 12. O-O-O {[%emt 0:00:00]} Qxe2 {[%emt 0:00:17]} 13. Bxe2 {[%emt 0:00:00]} Bc5 {[%emt 0:04:27]} 14. f4 {[%emt 0:00:00]} O-O-O {[%emt 0:11:26]} 15. Bf3 {[%emt 0:00:00]} Rhe8 {[%emt 0:04:16]} 16. Rhe1 {[%emt 0:00:00]} Nb6 {[%emt 0:05:36]} 17. Rxe8 {[%emt 0:00:00]} Rxe8 {[%emt 0:00:37]} 18. f5 {[%emt 0:00:00]} gxf5 {[%emt 0:15:50]} 19. Nxf5 {[%emt 0:00:00]} Bf8 {[%emt 0:00:49]} 20. Bc3 {[%emt 0:00:00]} Nbd5 {[%emt 0:01:08]} 21. Bd4 {[%emt 0:00:00]} g6 {[%emt 0:02:57]} 22. c4 {[%emt 0:00:00]} gxf5 {[%emt 0:02:18]} 23. cxd5 {[%emt 0:00:00]} Bh6+ {[%emt 0:01:58]} 24. Kb1 {[%emt 0:00:00]} Nxd5 {[%emt 0:00:22]} 25. Bxa7 {[%emt 0:00:00]} Ne3 {[%emt 0:13:36]} 26. Re1 {[%emt 0:00:00]} f4 {[%emt 0:02:33]} 27. g3 {[%emt 0:05:16]} fxg3 {[%emt 0:01:42]} 28. hxg3 {[%emt 0:00:05]} f6 {[%emt 0:08:07]} 29. Rh1 {[%emt 0:02:19]} Bg5 {[%emt 0:04:21]} 30. Rh7 {[%emt 0:00:13]} Re5 {[%emt 0:04:14]} 31. Rf7 {[%emt 0:02:29]} Rb5 {[%emt 0:08:44]} 32. Bd4 {[%emt 0:00:54]} Nc4 {[%emt 0:01:19]} 33. Bg4+ {[%emt 0:01:49]} Kb8 {[%emt 0:00:52]} 34. b3 {[%emt 0:02:40]} Nd2+ {[%emt 0:00:25]} 35. Kc2 {[%emt 0:00:25]} Ne4 {[%emt 0:00:26]} 36. Kd3 {[%emt 0:00:45]} Nc5+ {[%emt 0:00:48]} 37. Kc4 {[%emt 0:00:25]} Ne4 {[%emt 0:00:10]} 38. Re7 {[%emt 0:00:35]} Nd6+ {[%emt 0:00:48]} 39. Kd3 {[%emt 0:00:12]} f5 {[%emt 0:00:07]} 40. Re6 {[%emt 0:00:19]} fxg4 {[%emt 0:00:47]} 41. Rxd6 {[%emt 0:30:02]} Kc7 {[%emt 0:30:27]} 42. Rg6 {[%emt 0:00:12]} Rd5 {[%emt 0:00:34]} 43. Ke4 {[%emt 0:00:08]} b5 {[%emt 0:00:38]} 44. Be5+ {[%emt 0:00:16]} Rxe5+ {[%emt 0:00:29]} 45. Kxe5 {[%emt 0:00:07]} 1-0

[Event "LAT-chT Higher League 2019"]
[Site "Riga"]
[Date "2019.10.12"]
[Round "7.3"]
[White "Beks, Edmunds"]
[Black "Klimakovs, Sergejs"]
[Result "0-1"]
[ECO "D78"]
[WhiteElo "2024"]
[BlackElo "2313"]
[Annotator "NA"]
[PlyCount "94"]
[EventDate "2019.02.15"]
[EventType "team-tourn"]
[EventCountry "LAT"]
[SourceTitle "playchess.com"]
[Source "ChessBase"]
[SourceQuality "1"]
[TimeControl "40/5400+30:1800+30"]

1. Nf3 {[%emt 0:00:47]} d5 {[%emt 0:00:00]} 2. g3 {[%emt 0:00:08]} g6 {[%emt 0:00:01]} 3. Bg2 {[%emt 0:00:04]} Bg7 {[%emt 0:00:14]} 4. d4 {[%emt 0:00:23]} Nf6 {[%emt 0:03:28]} 5. O-O {[%emt 0:00:20]} O-O {[%emt 0:00:09]} 6. c4 {[%emt 0:01:36]} c6 {[%emt 0:01:19]} 7. b3 {[%emt 0:00:55]} Ne4 {[%emt 0:06:08]} 8. Bb2 {[%emt 0:00:54]} a5 {[%emt 0:10:03]} 9. Nbd2 {[%emt 0:03:48]} a4 $11 {[%emt 0:03:48]} 10. Nxe4 {[%emt 0:03:47]} dxe4 {[%emt 0:00:17]} 11. Ne1 {[%emt 0:00:03]} c5 {[%emt 0:08:04]} 12. e3 {[%emt 0:07:59]} Nc6 {[%emt 0:04:49]} 13. Nc2 {[%emt 0:00:45]} f5 {[%emt 0:08:11]} 14. f3 {[%emt 0:05:55]} exf3 {[%emt 0:06:49]} 15. Bxf3 {[%emt 0:01:06]} Qa5 {[%emt 0:06:19]} 16. Ba3 {[%emt 0:18:48]} cxd4 {[%emt 0:06:03]} 17. exd4 {[%emt 0:00:12]} Rd8 {[%emt 0:02:39]} 18. Bxc6 {[%emt 0:02:18]} bxc6 {[%emt 0:00:12]} 19. Bxe7 {[%emt 0:00:37]} Rxd4 {[%emt 0:10:54]} 20. Nxd4 {[%emt 0:01:28]} Qa7 {[%emt 0:00:01]} 21. c5 {[%emt 0:00:41]} Qxe7 {[%emt 0:00:16]} 22. Qd2 {[%emt 0:08:50]} Qxc5 {[%emt 0:02:44]} 23. Rad1 {[%emt 0:03:33]} Ba6 {[%emt 0:02:29]} 24. b4 {[%emt 0:11:01]} Qb6 {[%emt 0:04:20]} 25. Rf4 {[%emt 0:00:18]} Rd8 {[%emt 0:00:27]} 26. Qe1 {[%emt 0:02:31]} g5 {[%emt 0:04:32]} 27. Rxf5 {[%emt 0:04:56]} Bxd4+ {[%emt 0:01:03]} 28. Kg2 {[%emt 0:00:12]} Bc4 {[%emt 0:07:28]} 29. Rxg5+ {[%emt 0:02:29]} Kh8 {[%emt 0:00:09]} 30. Qe7 {[%emt 0:03:20]} Rg8 {[%emt 0:00:59]} 31. Rxg8+ {[%emt 0:03:38]} Bxg8 {[%emt 0:00:13]} 32. Qf8 {[%emt 0:01:41]} Qa7 {[%emt 0:01:03]} 33. Qc8 {[%emt 0:00:41]} Qg7 {[%emt 0:00:21]} 34. Qxc6 {[%emt 0:03:51]} Qe5 {[%emt 0:00:13]} 35. Rxd4 {[%emt 0:02:30]} Qxd4 {[%emt 0:00:09]} 36. Qxa4 {[%emt 0:00:04]} Bd5+ {[%emt 0:00:10]} 37. Kh3 {[%emt 0:00:12]} Be6+ {[%emt 0:00:15]} 38. Kg2 {[%emt 0:00:10]} Qd2+ {[%emt 0:00:12]} 39. Kf3 {[%emt 0:00:46]} Bd5+ {[%emt 0:01:05]} 40. Kg4 {[%emt 0:00:33]} Qe2+ {[%emt 0:00:40]} 41. Kg5 {[%emt 0:34:35]} Qe5+ {[%emt 0:30:24]} 42. Kh4 {[%emt 0:00:42]} Qf6+ {[%emt 0:00:23]} 43. Kh3 {[%emt 0:00:33]} Qf5+ {[%emt 0:00:39]} 44. Kh4 {[%emt 0:00:28]} Be6 {[%emt 0:01:06]} 45. Qe8+ {[%emt 0:00:49]} Kg7 {[%emt 0:00:05]} 46. Qe7+ {[%emt 0:00:58]} Kh6 {[%emt 0:00:19]} 47. Qe8 {[%emt 0:01:01]} Qg4# {[%emt 0:00:07]} 0-1

[Event "LAT-chT Higher League 2019"]
[Site "Riga"]
[Date "2019.10.12"]
[Round "7.4"]
[White "Dzjuba, Vsevolod"]
[Black "Bagatais, Janis"]
[Result "1-0"]
[ECO "C87"]
[WhiteElo "2160"]
[BlackElo "1803"]
[Annotator "NA"]
[PlyCount "101"]
[EventDate "2019.02.15"]
[EventType "team-tourn"]
[EventCountry "LAT"]
[SourceTitle "playchess.com"]
[Source "ChessBase"]
[SourceQuality "1"]
[TimeControl "40/5400+30:1800+30"]

1. e4 {[%emt 0:00:00]} e5 {[%emt 0:06:32]} 2. Nf3 {[%emt 0:00:00]} Nc6 {[%emt 0:00:03]} 3. Bb5 {[%emt 0:00:00]} a6 {[%emt 0:00:06]} 4. Ba4 {[%emt 0:00:00]} Nf6 {[%emt 0:00:09]} 5. O-O {[%emt 0:00:08]} Be7 {[%emt 0:00:36]} 6. Re1 {[%emt 0:00:22]} O-O {[%emt 0:00:19]} 7. Bxc6 {[%emt 0:03:13]} dxc6 {[%emt 0:00:20]} 8. Nxe5 {[%emt 0:00:21]} c5 {[%emt 0:01:59]} 9. d3 {[%emt 0:05:26]} Nd7 {[%emt 0:07:28]} 10. Nxd7 {[%emt 0:13:55]} Bxd7 {[%emt 0:00:18]} 11. Nc3 {[%emt 0:00:14]} c6 {[%emt 0:04:48]} 12. Be3 {[%emt 0:06:08]} f5 {[%emt 0:03:38]} 13. Qd2 {[%emt 0:02:35]} b5 {[%emt 0:07:57]} 14. Rad1 {[%emt 0:11:37]} Rf7 {[%emt 0:04:13]} 15. d4 {[%emt 0:05:31]} f4 {[%emt 0:15:07]} 16. Bxf4 {[%emt 0:00:32]} Bg4 {[%emt 0:00:15]} 17. Ne2 {[%emt 0:03:35]} Bxe2 {[%emt 0:06:08]} 18. Rxe2 {[%emt 0:00:10]} cxd4 {[%emt 0:00:15]} 19. Be5 {[%emt 0:05:57]} c5 {[%emt 0:00:51]} 20. c3 {[%emt 0:02:17]} dxc3 {[%emt 0:01:43]} 21. Bxc3 {[%emt 0:04:23]} Qb6 {[%emt 0:01:46]} 22. Ba5 {[%emt 0:01:34]} Qg6 {[%emt 0:02:00]} 23. f4 {[%emt 0:05:37]} Qg4 {[%emt 0:04:25]} 24. Rf1 {[%emt 0:03:45]} Ra7 {[%emt 0:08:56]} 25. h3 {[%emt 0:01:10]} Qc8 {[%emt 0:00:11]} 26. Qd5 {[%emt 0:02:12]} Rd7 {[%emt 0:01:40]} 27. Qe6 {[%emt 0:00:11]} Kf8 {[%emt 0:01:11]} 28. e5 {[%emt 0:01:40]} c4 {[%emt 0:08:15]} 29. Kh2 {[%emt 0:00:18]} Rd8 {[%emt 0:02:58]} 30. Qxc8 {[%emt 0:01:00]} Rxc8 {[%emt 0:00:01]} 31. f5 {[%emt 0:05:10]} Bc5 {[%emt 0:01:12]} 32. e6 {[%emt 0:00:31]} Rb7 {[%emt 0:00:18]} 33. Rd1 {[%emt 0:02:49]} Be7 {[%emt 0:01:02]} 34. Rd7 {[%emt 0:02:37]} Rxd7 {[%emt 0:00:07]} 35. exd7 {[%emt 0:00:14]} Ra8 {[%emt 0:00:08]} 36. g4 {[%emt 0:02:03]} Kf7 {[%emt 0:00:40]} 37. Kg2 {[%emt 0:00:18]} g6 {[%emt 0:00:09]} 38. Kf3 {[%emt 0:01:50]} gxf5 {[%emt 0:00:11]} 39. gxf5 {[%emt 0:00:08]} Rg8 {[%emt 0:01:04]} 40. Re6 {[%emt 0:02:02]} Bd8 {[%emt 0:00:28]} 41. Rxa6 {[%emt 0:30:57]} Bxa5 {[%emt 0:31:26]} 42. Rxa5 {[%emt 0:00:10]} Ke7 {[%emt 0:03:49]} 43. Rxb5 {[%emt 0:00:50]} Kxd7 {[%emt 0:00:04]} 44. a4 {[%emt 0:01:44]} Kd6 {[%emt 0:00:38]} 45. a5 {[%emt 0:00:52]} Ra8 {[%emt 0:00:30]} 46. Kf4 {[%emt 0:00:28]} Kc6 {[%emt 0:00:17]} 47. Rb6+ {[%emt 0:02:56]} Kd5 {[%emt 0:01:30]} 48. a6 {[%emt 0:00:22]} Kc5 {[%emt 0:01:19]} 49. Re6 {[%emt 0:00:28]} Ra7 {[%emt 0:01:25]} 50. Ke5 {[%emt 0:00:14]} h5 {[%emt 0:01:18]} 51. f6 {[%emt 0:04:56] Kd5} 1-0

[Event "LAT-chT Higher League 2019"]
[Site "Riga"]
[Date "2019.10.12"]
[Round "7.5"]
[White "Zemzare, Agnija"]
[Black "Chernyak, Viktoria"]
[Result "0-1"]
[ECO "D35"]
[WhiteElo "1931"]
[BlackElo "2284"]
[Annotator "NA"]
[PlyCount "110"]
[EventDate "2019.02.15"]
[EventType "team-tourn"]
[EventCountry "LAT"]
[SourceTitle "playchess.com"]
[Source "ChessBase"]
[SourceQuality "1"]
[TimeControl "40/5400+30:1800+30"]

1. d4 {[%emt 0:00:09]} d5 {[%emt 0:00:00]} 2. c4 {[%emt 0:00:13]} e6 {[%emt 0:00:00]} 3. Nc3 {[%emt 0:00:15]} c6 {[%emt 0:00:29]} 4. cxd5 {[%emt 0:01:41]} exd5 {[%emt 0:00:05]} 5. Bf4 {[%emt 0:01:12]} Nf6 {[%emt 0:01:20]} 6. e3 {[%emt 0:00:36]} Nbd7 {[%emt 0:03:00]} 7. Bd3 {[%emt 0:02:17]} Be7 {[%emt 0:00:25]} 8. Qc2 {[%emt 0:04:55]} Nf8 {[%emt 1:28:41]} 9. Nf3 {[%emt 0:06:50]} Nh5 $14 {[%emt 1:20:05]} 10. Be5 {[%emt 0:06:11]} Ng6 {[%emt 1:11:52]} 11. h3 {[%emt 0:06:59]} Nxe5 {[%emt 0:00:34]} 12. dxe5 {[%emt 0:08:26]} g6 {[%emt 0:01:04]} 13. Rd1 {[%emt 0:04:20]} O-O {[%emt 0:02:15]} 14. O-O {[%emt 0:03:42]} Bd7 {[%emt 0:21:14]} 15. Rd2 {[%emt 0:13:04]} b5 {[%emt 0:04:37]} 16. g4 {[%emt 0:09:56]} Ng7 {[%emt 0:41:28]} 17. e4 {[%emt 0:03:56]} b4 {[%emt 0:11:43]} 18. Ne2 {[%emt 0:03:38]} dxe4 {[%emt 0:01:46]} 19. Bxe4 {[%emt 0:00:19]} Qc7 {[%emt 0:00:42]} 20. Nf4 {[%emt 0:21:21]} Rac8 {[%emt 0:02:27]} 21. Rc1 {[%emt 0:01:15]} Ne6 {[%emt 0:06:49]} 22. Nxe6 {[%emt 0:00:55]} Bxe6 {[%emt 0:02:08]} 23. Bxc6 {[%emt 0:04:10]} Qb6 {[%emt 0:08:21]} 24. b3 {[%emt 0:04:15]} Rc7 {[%emt 0:10:03]} 25. Qe4 {[%emt 0:01:12]} Bc5 {[%emt 0:01:13]} 26. Nd4 {[%emt 0:00:30]} Rfc8 {[%emt 0:04:46]} 27. Bd5 {[%emt 0:01:27]} Bxd4 {[%emt 0:00:59]} 28. Rxc7 {[%emt 0:00:09]} Bxf2+ {[%emt 0:01:06]} 29. Rxf2 {[%emt 0:00:30]} Rxc7 {[%emt 0:00:02]} 30. Bxe6 {[%emt 0:00:30]} Qxe6 {[%emt 0:00:05]} 31. Re2 {[%emt 0:00:57]} Qb6+ {[%emt 0:01:02]} 32. Kg2 {[%emt 0:00:17]} Rc1 {[%emt 0:01:49]} 33. Rf2 {[%emt 0:00:32]} Rd1 {[%emt 0:01:25]} 34. Qf3 {[%emt 0:00:29]} Rd7 {[%emt 0:00:24]} 35. Qf6 {[%emt 0:00:21]} Qe3 {[%emt 0:02:11]} 36. g5 {[%emt 0:00:51]} a5 {[%emt 0:01:05]} 37. Qf4 {[%emt 0:00:27]} Qxf4 {[%emt 0:00:29]} 38. Rxf4 {[%emt 0:00:01]} Rd5 {[%emt 0:00:26]} 39. Re4 {[%emt 0:01:01]} Rd2+ {[%emt 0:00:23]} 40. Kf3 {[%emt 0:00:09]} Rxa2 {[%emt 0:00:08]} 41. Re3 {[%emt 0:30:47]} Kf8 {[%emt 0:30:28]} 42. Ke4 {[%emt 0:01:30]} Rg2 {[%emt 0:00:39]} 43. Kf4 {[%emt 0:00:55]} Ke7 {[%emt 0:00:11]} 44. Rd3 {[%emt 0:00:14]} Re2 {[%emt 0:01:08]} 45. Rd5 {[%emt 0:00:13]} Rh2 {[%emt 0:00:51]} 46. Kg3 {[%emt 0:00:26]} Ra2 {[%emt 0:00:13]} 47. Kf4 {[%emt 0:00:08]} Ra3 {[%emt 0:00:06]} 48. Rb5 {[%emt 0:00:13]} Rxb3 {[%emt 0:00:09]} 49. Rxa5 {[%emt 0:00:02]} Rxh3 {[%emt 0:00:05]} 50. Ra7+ {[%emt 0:00:10]} Ke6 {[%emt 0:02:34]} 51. Ra6+ {[%emt 0:00:07]} Kd5 {[%emt 0:00:13]} 52. Rd6+ {[%emt 0:00:18]} Kc4 {[%emt 0:00:34]} 53. Rd7 {[%emt 0:00:18]} Rh1 {[%emt 0:00:38]} 54. Ke4 {[%emt 0:00:16]} Re1+ {[%emt 0:00:07]} 55. Kf4 {[%emt 0:00:17]} b3 {[%emt 0:00:13]} 0-1

[Event "LAT-chT Higher League 2019"]
[Site "Riga"]
[Date "2019.10.12"]
[Round "7.6"]
[White "Semjonovs, Ilja"]
[Black "Antoms, Guntars"]
[Result "1-0"]
[ECO "C41"]
[WhiteElo "2357"]
[BlackElo "2337"]
[Annotator "NA"]
[PlyCount "105"]
[EventDate "2019.02.15"]
[EventType "team-tourn"]
[EventCountry "LAT"]
[SourceTitle "playchess.com"]
[Source "ChessBase"]
[SourceQuality "1"]
[TimeControl "40/5400+30:1800+30"]

1. e4 {[%emt 0:00:29]} e5 {[%emt 0:00:18]} 2. Nf3 {[%emt 0:00:15]} d6 {[%emt 0:00:12]} 3. d4 {[%emt 0:00:44]} Nd7 {[%emt 0:00:21]} 4. Nc3 {[%emt 0:03:20]} c6 {[%emt 0:01:14]} 5. Bc4 {[%emt 0:01:36]} Be7 {[%emt 0:00:41]} 6. O-O {[%emt 0:03:13]} Ngf6 {[%emt 0:01:20]} 7. a4 {[%emt 0:00:58]} O-O {[%emt 0:01:20]} 8. a5 {[%emt 0:22:18]} Nxe4 {[%emt 0:02:25]} 9. Nxe4 {[%emt 0:04:30]} d5 {[%emt 0:00:16]} 10. a6 {[%emt 0:04:52]} exd4 {[%emt 0:12:39]} 11. Qxd4 {[%emt 0:06:43]} dxc4 {[%emt 0:08:48]} 12. axb7 {[%emt 0:04:56]} Bxb7 {[%emt 0:00:41]} 13. Nd6 {[%emt 0:00:15]} c5 {[%emt 0:09:17]} 14. Nxb7 {[%emt 0:00:27]} cxd4 {[%emt 0:00:06]} 15. Nxd8 {[%emt 0:00:10]} Bxd8 {[%emt 0:02:04]} 16. Nxd4 {[%emt 0:00:16]} Bb6 {[%emt 0:01:06]} 17. Be3 {[%emt 0:06:50]} Rfe8 {[%emt 0:03:02]} 18. Nf5 {[%emt 0:01:36]} Ne5 {[%emt 0:06:08]} 19. Bxb6 {[%emt 0:10:16]} axb6 {[%emt 0:00:26]} 20. Nd6 {[%emt 0:00:04]} Red8 {[%emt 0:02:25]} 21. Rxa8 {[%emt 0:01:50]} Rxa8 {[%emt 0:00:06]} 22. f4 {[%emt 0:00:03]} Ng4 {[%emt 0:00:15]} 23. Re1 {[%emt 0:02:27]} c3 {[%emt 0:01:15]} 24. bxc3 {[%emt 0:01:14]} h5 {[%emt 0:00:22]} 25. Rb1 {[%emt 0:02:59]} Ra2 {[%emt 0:00:49]} 26. h3 {[%emt 0:02:49]} Nf6 {[%emt 0:02:16]} 27. Rxb6 {[%emt 0:02:23]} Rxc2 {[%emt 0:01:03]} 28. c4 {[%emt 0:00:38]} h4 {[%emt 0:00:28]} 29. Rb8+ {[%emt 0:01:21]} Kh7 {[%emt 0:00:02]} 30. f5 {[%emt 0:01:40]} g6 {[%emt 0:02:42]} 31. Rb6 {[%emt 0:02:49]} gxf5 {[%emt 0:08:22]} 32. Nxf5 {[%emt 0:01:04]} Ne4 {[%emt 0:01:20]} 33. Rh6+ {[%emt 0:00:13]} Kg8 {[%emt 0:00:01]} 34. Rxh4 {[%emt 0:00:08]} Rxc4 {[%emt 0:00:14]} 35. Rg4+ {[%emt 0:00:56]} Kf8 {[%emt 0:00:32]} 36. Kh2 {[%emt 0:00:53]} Nd2 {[%emt 0:00:13]} 37. Rxc4 {[%emt 0:00:10]} Nxc4 {[%emt 0:00:01]} 38. Kg3 {[%emt 0:00:11]} f6 {[%emt 0:01:50]} 39. Kf4 {[%emt 0:01:08]} Kf7 {[%emt 0:00:14]} 40. Ne3 {[%emt 0:02:37]} Nd6 {[%emt 0:00:49]} 41. g4 {[%emt 0:30:42]} Ne8 {[%emt 0:32:04]} 42. h4 {[%emt 0:01:14]} Nc7 {[%emt 0:00:35]} 43. Ke4 {[%emt 0:00:34]} Ne6 {[%emt 0:00:33]} 44. Nd5 {[%emt 0:00:57]} Ng7 {[%emt 0:00:40]} 45. Nf4 {[%emt 0:00:49]} Ne8 {[%emt 0:00:26]} 46. Kd5 {[%emt 0:00:25]} Ng7 {[%emt 0:00:49]} 47. Kd6 {[%emt 0:00:45]} Ne8+ {[%emt 0:00:06]} 48. Kd7 {[%emt 0:00:13]} Ng7 {[%emt 0:00:08]} 49. h5 {[%emt 0:00:43]} f5 {[%emt 0:01:47]} 50. h6 {[%emt 0:00:11]} Ne8 {[%emt 0:00:48]} 51. g5 {[%emt 0:00:14]} Nf6+ {[%emt 0:00:55]} 52. gxf6 {[%emt 0:00:05]} Kxf6 {[%emt 0:00:05]} 53. Kd6 {[%emt 0:00:13]} 1-0

[Event "LAT-chT Higher League 2019"]
[Site "Riga"]
[Date "2019.10.12"]
[Round "7.7"]
[White "Shulman, Vladlen"]
[Black "Chukavin, Kirill"]
[Result "0-1"]
[ECO "B83"]
[WhiteElo "2238"]
[BlackElo "2332"]
[Annotator "NA"]
[PlyCount "76"]
[EventDate "2019.02.15"]
[EventType "team-tourn"]
[EventCountry "LAT"]
[SourceTitle "playchess.com"]
[Source "ChessBase"]
[SourceQuality "1"]
[TimeControl "40/5400+30:1800+30"]

1. e4 {[%emt 0:02:29]} c5 {[%emt 0:00:05]} 2. Nf3 {[%emt 0:00:09]} e6 {[%emt 0:01:16]} 3. Nc3 {[%emt 0:00:10]} d6 {[%emt 0:00:49]} 4. d4 {[%emt 0:00:08]} cxd4 {[%emt 0:00:07]} 5. Nxd4 {[%emt 0:00:10]} Nf6 {[%emt 0:00:10]} 6. Be2 {[%emt 0:00:08]} Be7 {[%emt 0:00:49]} 7. f4 {[%emt 0:00:09]} Nc6 {[%emt 0:03:02]} 8. Be3 {[%emt 0:00:08]} O-O {[%emt 0:01:40]} 9. O-O {[%emt 0:00:08]} e5 {[%emt 0:01:23]} 10. fxe5 {[%emt 0:00:48]} dxe5 {[%emt 0:00:49]} 11. Nf5 {[%emt 0:00:15]} Bxf5 {[%emt 0:00:18]} 12. Rxf5 {[%emt 0:00:39]} g6 {[%emt 0:25:25]} 13. Rf1 {[%emt 0:08:47]} Qxd1 {[%emt 0:00:54]} 14. Raxd1 {[%emt 0:00:11]} Rfd8 {[%emt 0:12:14]} 15. h3 {[%emt 0:11:58]} Rac8 {[%emt 0:14:40]} 16. g4 {[%emt 0:04:24]} Nb4 {[%emt 0:12:13]} 17. Rxd8+ {[%emt 0:10:34]} Rxd8 {[%emt 0:06:49]} 18. Rc1 {[%emt 0:00:20]} Nd7 {[%emt 0:04:59]} 19. Bc4 {[%emt 0:16:47]} Bc5 {[%emt 0:01:50]} 20. Kf2 {[%emt 0:01:37]} Rc8 {[%emt 0:05:05]} 21. Bb3 {[%emt 0:17:17]} Bxe3+ {[%emt 0:01:53]} 22. Kxe3 {[%emt 0:00:12]} Nc5 {[%emt 0:00:04]} 23. Bd5 {[%emt 0:00:48]} Kg7 {[%emt 0:01:39]} 24. a3 {[%emt 0:02:41]} Nxd5+ {[%emt 0:00:04]} 25. exd5 {[%emt 0:04:41]} f5 {[%emt 0:00:54]} 26. gxf5 {[%emt 0:00:34]} gxf5 {[%emt 0:00:01]} 27. b4 {[%emt 0:00:19]} Nd7 {[%emt 0:00:58]} 28. Kd3 {[%emt 0:05:40]} Nb6 {[%emt 0:00:42]} 29. Rd1 {[%emt 0:00:09]} e4+ {[%emt 0:00:56]} 30. Kd2 {[%emt 0:01:16]} Nc4+ {[%emt 0:00:34]} 31. Ke2 {[%emt 0:00:09]} Nb2 {[%emt 0:01:33]} 32. Nb5 {[%emt 0:08:19]} Nxd1 {[%emt 0:00:38]} 33. Kxd1 {[%emt 0:00:13]} Kf6 {[%emt 0:00:39]} 34. Nxa7 {[%emt 0:00:14]} Rc3 {[%emt 0:01:11]} 35. Nb5 {[%emt 0:00:37]} Rxh3 {[%emt 0:00:07]} 36. c4 {[%emt 0:00:07]} Ke5 {[%emt 0:00:19]} 37. d6 {[%emt 0:00:09]} f4 {[%emt 0:00:29]} 38. c5 {[%emt 0:00:20]} Rd3+ {[%emt 0:00:14]} 0-1